bitfinex/quotes_BTCUSD_20251208
["timestamp","ask_amount","ask_price","bid_price","bid_amount"]
[1765153391684,0.04286909,90170.0,90169.0,0.06452299]
[1765153392045,0.04286909,90170.0,90169.0,0.28632871]
[1765153392931,0.04286909,90170.0,90169.0,0.29280871]
[1765153393073,0.04286909,90170.0,90169.0,0.31500871]
[1765153393277,0.04286909,90170.0,90169.0,0.32148871]
[1765153393894,0.01186909,90170.0,90169.0,0.32048871]
[1765153394120,0.04186909,90170.0,90169.0,0.32148871]
[1765153394816,0.04186909,90170.0,90169.0,0.29280871]
[1765153395020,0.01186909,90170.0,90169.0,0.28532871]
[1765153395236,0.00286909,90170.0,90169.0,0.28432871]
[1765153395415,0.00286909,90170.0,90169.0,0.29080871]
[1765153395621,0.01186909,90170.0,90169.0,0.29828871]
[1765153396065,0.00286909,90170.0,90169.0,0.29080871]
[1765153396447,0.00186909,90170.0,90169.0,0.31948871]
[1765153396879,0.00686909,90170.0,90169.0,0.31948871]
[1765153397044,0.00186909,90170.0,90169.0,0.64248871]
[1765153397233,0.00486909,90170.0,90169.0,0.64248871]
[1765153397640,0.00186909,90170.0,90169.0,0.64248871]
[1765153397828,0.00486909,90170.0,90169.0,0.64248871]
[1765153398296,0.0004,90180.0,90179.0,0.30650411]
[1765153398491,0.0005178,90180.0,90179.0,0.31946411]
[1765153398645,0.0005178,90180.0,90179.0,0.32594411]
[1765153398850,0.0005178,90180.0,90179.0,0.35565558]
[1765153399277,0.0005178,90180.0,90179.0,0.32594411]
[1765153399632,0.0005178,90180.0,90179.0,0.35565551]
[1765153399781,0.0005178,90180.0,90179.0,0.67965551]
[1765153400119,0.0015178,90180.0,90179.0,0.64994411]
[1765153401424,0.0004,90210.0,90208.0,0.06252299]
[1765153401744,0.00051775,90210.0,90209.0,0.28423035]
[1765153402349,0.00051775,90210.0,90209.0,0.29071035]
[1765153402583,0.00051775,90210.0,90209.0,0.06252299]
[1765153402863,0.00951775,90210.0,90209.0,0.06252299]
[1765153403022,0.03951775,90210.0,90209.0,0.06252299]
[1765153403226,0.03051775,90210.0,90209.0,0.06252299]
[1765153403425,0.02642775,90210.0,90209.0,0.06352299]
[1765153403654,0.05642775,90210.0,90209.0,0.06452299]
[1765153404422,0.08300062,90210.0,90209.0,0.002]
[1765153404983,0.08419571,90210.0,90209.0,0.002]
[1765153405142,0.04232571,90210.0,90209.0,0.002]
[1765153405343,0.04232571,90210.0,90209.0,0.28623035]
[1765153405572,0.04232571,90210.0,90209.0,0.29271035]
[1765153405774,0.04232571,90210.0,90209.0,0.06452299]
[1765153406129,0.04232571,90210.0,90209.0,0.002]
[1765153406130,0.08419571,90210.0,90209.0,0.002]
[1765153406317,0.04232571,90210.0,90209.0,0.002]
[1765153407616,0.05923571,90210.0,90209.0,0.002]
[1765153408581,0.04232571,90210.0,90209.0,0.002]
[1765153409188,0.04232571,90210.0,90209.0,0.06452299]
[1765153409576,0.04232571,90210.0,90209.0,0.07100299]
[1765153409922,0.04071284,90210.0,90209.0,0.07100299]
[1765153410282,0.04071284,90210.0,90209.0,0.09320299]
[1765153410685,0.04071284,90210.0,90209.0,0.07100299]
[1765153410889,0.04071284,90210.0,90209.0,0.06452299]
[1765153411123,0.04071284,90210.0,90209.0,0.07100299]
[1765153411330,0.04071284,90210.0,90209.0,0.07748299]
[1765153411523,0.04071284,90210.0,90209.0,0.42268299]
[1765153411775,0.04071284,90210.0,90209.0,0.40048299]
[1765153411958,0.04071284,90210.0,90209.0,0.48566283]
[1765153412464,0.00171284,90210.0,90209.0,0.45396663]
[1765153412669,0.00171284,90210.0,90209.0,0.45596663]
[1765153412893,0.00171284,90210.0,90209.0,0.45896663]
[1765153413095,0.00171284,90210.0,90209.0,0.45596663]
[1765153413433,0.00171284,90210.0,90209.0,0.43376663]
[1765153413640,0.00171284,90210.0,90209.0,0.45596663]
[1765153413840,0.00271284,90210.0,90209.0,0.45396663]
[1765153414367,0.00171284,90210.0,90209.0,0.45496663]
[1765153414571,0.00171284,90210.0,90209.0,0.45696663]
[1765153414980,0.00171284,90210.0,90209.0,0.45896663]
[1765153415350,0.00171284,90210.0,90209.0,0.45696663]
[1765153415774,0.00171284,90210.0,90209.0,0.45496663]
[1765153416210,0.00171284,90210.0,90209.0,0.49456156]
[1765153416417,0.00171284,90210.0,90209.0,0.45496663]
[1765153416615,0.00171284,90210.0,90209.0,0.45796663]
[1765153416786,0.00171284,90210.0,90209.0,0.45696663]
[1765153416987,0.00171284,90210.0,90209.0,0.45396663]
[1765153417204,0.0004,90220.0,90219.0,0.62940578]
[1765153417418,0.0004,90230.0,90229.0,0.40772299]
[1765153417620,0.0004,90230.0,90229.0,0.31934121]
[1765153418057,0.0004,90230.0,90229.0,0.32377771]
[1765153418880,0.0004,90230.0,90229.0,0.32677771]
[1765153419729,0.0004,90240.0,90239.0,0.62935665]
[1765153419940,0.00051773,90240.0,90239.0,0.67690788]
[1765153420148,0.00051773,90240.0,90239.0,0.70647015]
[1765153420575,0.0004,90250.0,90249.0,0.62933209]
[1765153420776,4.012e-05,90265.0,90259.0,0.22158455]
[1765153420982,0.0002,90290.0,90269.0,0.08472299]
[1765153421188,0.0002,90290.0,90279.0,0.62925845]
[1765153421392,0.0007926,90280.0,90279.0,0.65977845]
[1765153421605,0.0007926,90280.0,90279.0,0.65329845]
[1765153422124,0.0007926,90280.0,90279.0,0.66457387]
[1765153422530,0.0057926,90280.0,90279.0,0.66900387]
[1765153423254,0.0057926,90280.0,90279.0,0.62481387]
[1765153423459,0.02276547,90280.0,90279.0,0.01127542]
[1765153423714,0.0500748,90280.0,90279.0,0.01127542]
[1765153423846,0.0110775,90273.0,90270.0,0.01756]
[1765153424045,0.01269037,90273.0,90270.0,0.01756]
[1765153424329,0.23264286,90268.0,90267.0,0.08008299]
[1765153424572,0.23264286,90268.0,90265.0,0.01703123]
[1765153424767,0.23261332,90279.0,90272.0,0.01107763]
[1765153424970,0.0007926,90280.0,90267.0,0.02199]
[1765153424971,0.01186925,90280.0,90277.0,0.01107701]
[1765153425174,0.0007926,90280.0,90279.0,0.07955422]
[1765153425375,0.0007926,90280.0,90279.0,0.10175422]
[1765153425496,0.0007926,90280.0,90279.0,0.12817422]
[1765153427941,0.0097926,90280.0,90279.0,0.45117422]
[1765153428775,0.0007926,90280.0,90279.0,0.45117422]
[1765153428981,0.0037926,90280.0,90279.0,0.42897422]
[1765153429180,0.0037926,90280.0,90279.0,0.45117422]
[1765153429409,0.0007926,90280.0,90279.0,0.45117422]
[1765153429608,0.00288193,90280.0,90279.0,0.45117422]
[1765153429790,0.00788193,90280.0,90279.0,0.42897422]
[1765153429982,0.00788193,90280.0,90279.0,0.45317422]
[1765153430779,0.00288193,90280.0,90279.0,0.45117422]
[1765153431019,0.00288193,90280.0,90279.0,0.45317422]
[1765153431202,0.00588193,90280.0,90279.0,0.45317422]
[1765153431743,0.00588193,90280.0,90279.0,0.45117422]
[1765153431965,0.00288193,90280.0,90279.0,1.14422822]
[1765153432296,0.00488193,90280.0,90279.0,1.14422822]
[1765153432527,0.00288193,90280.0,90279.0,1.14422822]
[1765153432952,0.00288193,90280.0,90279.0,1.14722822]
[1765153433484,0.00288193,90280.0,90279.0,1.14522822]
[1765153433695,0.00288193,90280.0,90279.0,1.14922822]
[1765153434043,0.00288193,90280.0,90279.0,1.14822822]
[1765153434392,0.00288193,90280.0,90279.0,1.14722822]
[1765153434974,0.00288193,90280.0,90279.0,1.14822822]
[1765153435180,1.93e-06,90280.0,90279.0,1.14822822]
[1765153435382,1.93e-06,90280.0,90279.0,1.18372822]
[1765153435965,1.93e-06,90280.0,90279.0,1.40526368]
[1765153436372,1.93e-06,90280.0,90279.0,1.36976368]
[1765153436582,0.0004,90300.0,90299.0,0.62920938]
[1765153436795,0.0004,90310.0,90309.0,0.54446186]
[1765153437005,0.0004,90310.0,90309.0,0.65117485]
[1765153437209,0.0004,90310.0,90309.0,0.66667524]
[1765153438212,0.0054,90310.0,90309.0,0.66667524]
[1765153438419,0.01106941,90339.0,90329.0,0.30613582]
[1765153438589,0.01217,90349.0,90329.0,0.30613582]
[1765153438590,0.00051761,90330.0,90329.0,0.10671299]
[1765153438828,0.00051761,90330.0,90329.0,0.10228299]
[1765153439003,0.01744048,90330.0,90329.0,0.06252299]
[1765153439721,0.00213048,90330.0,90329.0,0.06252299]
[1765153439900,0.00051761,90330.0,90329.0,0.06695299]
[1765153440143,0.00151761,90330.0,90329.0,0.06695299]
[1765153440566,0.01051761,90330.0,90329.0,0.06695299]
[1765153440811,0.01051761,90330.0,90329.0,0.06252299]
[1765153440990,0.01051761,90330.0,90329.0,0.06695299]
[1765153441312,0.01051761,90330.0,90329.0,0.08915299]
[1765153441466,0.22143489,90320.0,90309.0,0.02214348]
[1765153441680,0.22143489,90320.0,90319.0,0.01756]
[1765153441910,0.2325172,90316.0,90313.0,0.00443]
[1765153442209,0.2325172,90316.0,90315.0,0.06252299]
[1765153442414,0.01107186,90319.0,90315.0,0.06252299]
[1765153442415,0.23251207,90318.0,90315.0,0.08008299]
[1765153442572,0.00107367,90316.0,90315.0,0.08008299]
[1765153443199,0.00707367,90316.0,90315.0,0.08008299]
[1765153443939,0.00107367,90316.0,90315.0,0.08008299]
[1765153444147,0.00907367,90316.0,90315.0,0.08008299]
[1765153444356,0.00207367,90316.0,90315.0,0.08008299]
[1765153444790,0.02107367,90316.0,90315.0,0.08008299]
[1765153444997,0.02107367,90316.0,90313.0,0.00443]
[1765153444998,0.2425192,90316.0,90314.0,0.06252299]
[1765153445241,0.24044553,90316.0,90314.0,0.06252299]
[1765153445666,0.0110726,90313.0,90308.0,0.0222]
[1765153445934,0.01107309,90309.0,90308.0,0.08472299]
[1765153446149,0.01107309,90309.0,90308.0,0.10224299]
[1765153446597,0.23252723,90312.0,90309.0,0.06252299]
[1765153446801,0.22145941,90310.0,90308.0,0.03972]
[1765153447009,0.22146432,90308.0,90307.0,0.06252299]
[1765153447815,0.23414632,90310.0,90307.0,0.06252299]
[1765153448022,0.22146432,90308.0,90307.0,0.06252299]
[1765153448226,0.22147495,90304.0,90303.0,0.0222]
[1765153448429,0.01107333,90307.0,90306.0,0.08472299]
[1765153448614,0.2325401,90307.0,90306.0,0.08472299]
[1765153449246,0.2716401,90307.0,90306.0,0.06252299]
[1765153450162,0.2756401,90307.0,90306.0,0.06252299]
[1765153450340,0.01107431,90299.0,90294.0,0.01703123]
[1765153450543,0.01107481,90295.0,90294.0,0.01703123]
[1765153450743,0.01107481,90295.0,90294.0,0.07955422]
[1765153451341,0.02638481,90295.0,90294.0,0.07955422]
[1765153451547,0.05017481,90295.0,90294.0,0.06252299]
[1765153451864,0.05017481,90295.0,90294.0,0.06352299]
[1765153452057,0.05017481,90295.0,90294.0,0.06252299]
[1765153452447,0.05517481,90295.0,90294.0,0.06252299]
[1765153452650,0.06917481,90295.0,90294.0,0.06252299]
[1765153452883,0.02638481,90295.0,90294.0,0.06252299]
[1765153453334,0.08992481,90295.0,90294.0,0.06452299]
[1765153453844,0.08992481,90295.0,90294.0,0.002]
[1765153455777,0.09037228,90295.0,90294.0,0.002]
[1765153459091,0.06683228,90295.0,90294.0,0.002]
[1765153459307,0.05152228,90295.0,90294.0,0.0242]
[1765153460044,0.05152228,90295.0,90294.0,0.002]
[1765153460864,0.05152228,90295.0,90294.0,0.06452299]
[1765153462484,0.04044747,90295.0,90294.0,0.06452299]
[1765153462662,0.04044747,90295.0,90294.0,0.31265164]
[1765153463076,0.04044747,90295.0,90294.0,0.30822164]
[1765153463654,0.02944747,90295.0,90294.0,0.30722164]
[1765153463848,0.02944747,90295.0,90294.0,0.08572299]
[1765153464051,0.25194367,90295.0,90294.0,0.08104299]
[1765153464333,0.29209367,90295.0,90294.0,0.001]
[1765153464686,0.29109367,90295.0,90294.0,0.001]
[1765153464908,0.22152073,90285.0,90284.0,0.06252299]
[1765153465104,0.24977073,90285.0,90284.0,0.0001177]
[1765153465339,0.27331073,90285.0,90284.0,0.0001177]
[1765153466091,0.02825,90285.0,90284.0,0.0001177]
[1765153466293,0.27331073,90285.0,90284.0,0.0001177]
[1765153466495,0.27531073,90285.0,90284.0,0.0191177]
[1765153466743,0.27331073,90285.0,90284.0,0.0001177]
[1765153467126,0.27531073,90285.0,90284.0,0.0191177]
[1765153467701,0.27631073,90285.0,90284.0,0.0191177]
[1765153469020,0.25277073,90285.0,90284.0,0.08164069]
[1765153469221,0.003,90285.0,90284.0,0.08607069]
[1765153469428,0.003,90285.0,90284.0,0.69197742]
[1765153469629,0.003,90285.0,90284.0,0.66982511]
[1765153470071,0.003,90285.0,90284.0,0.70532511]
[1765153470685,0.003,90285.0,90284.0,0.73465035]
[1765153471065,0.003,90285.0,90284.0,0.70532511]
[1765153472139,0.003,90285.0,90284.0,0.68755511]
[1765153472283,0.003,90285.0,90284.0,0.70975511]
[1765153473043,0.002,90285.0,90284.0,0.70975511]
[1765153473319,0.002,90285.0,90284.0,0.71075511]
[1765153473490,0.00023867,90288.0,90287.0,0.62923882]
[1765153473779,0.00023867,90288.0,90287.0,0.63366882]
[1765153473981,0.00023867,90288.0,90287.0,0.63809882]
[1765153474885,0.00023867,90288.0,90287.0,0.65661882]
[1765153475301,0.00123867,90288.0,90287.0,0.67261882]
[1765153476060,0.00123867,90288.0,90287.0,0.70811882]
[1765153476416,0.00123867,90288.0,90287.0,0.76751122]
[1765153477423,0.00123867,90288.0,90287.0,0.76308122]
[1765153477636,0.00123867,90288.0,90287.0,0.76751122]
[1765153478025,0.00123867,90288.0,90287.0,0.76308122]
[1765153478339,0.00123867,90288.0,90287.0,0.68148882]
[1765153478673,0.00123867,90288.0,90287.0,0.75849204]
[1765153478820,0.00123867,90288.0,90287.0,0.70368882]
[1765153481335,0.01784867,90288.0,90287.0,0.41331142]
[1765153481488,0.01784867,90288.0,90287.0,0.35405882]
[1765153481683,0.01784867,90288.0,90287.0,0.33653882]
[1765153481888,0.01784867,90288.0,90287.0,0.30103882]
[1765153482495,0.01684867,90288.0,90287.0,0.28403882]
[1765153482697,0.01784867,90288.0,90287.0,0.28403882]
[1765153482982,0.00123867,90288.0,90287.0,0.28703882]
[1765153483752,0.04013867,90288.0,90287.0,0.003]
[1765153486489,0.03913867,90288.0,90287.0,0.003]
[1765153487004,0.04913867,90288.0,90287.0,0.004]
[1765153487135,0.04913867,90288.0,90287.0,0.001]
[1765153487337,0.12499188,90288.0,90287.0,0.001]
[1765153487559,0.07113867,90288.0,90287.0,0.002]
[1765153487754,0.04913867,90288.0,90287.0,0.001]
[1765153488226,0.04913867,90288.0,90284.0,0.0001177]
[1765153488227,0.22152073,90285.0,90284.0,0.0001177]
[1765153488523,0.23786073,90285.0,90284.0,0.0001177]
[1765153488680,0.26042073,90285.0,90284.0,0.0001177]
[1765153489268,0.23786073,90285.0,90284.0,0.0001177]
[1765153489712,0.22152073,90285.0,90284.0,0.0001177]
[1765153490126,0.27242073,90285.0,90284.0,0.0011177]
[1765153491001,0.30142073,90285.0,90284.0,0.0031177]
[1765153491200,0.28942073,90285.0,90284.0,0.0021177]
[1765153491425,0.26942073,90285.0,90284.0,0.0011177]
[1765153491592,0.29642073,90285.0,90284.0,0.0021177]
[1765153491990,0.28742073,90285.0,90284.0,0.0011177]
[1765153492239,0.29942073,90285.0,90284.0,0.0021177]
[1765153501568,0.32161672,90285.0,90284.0,0.0021177]
[1765153502509,0.29942073,90285.0,90284.0,0.0021177]
[1765153502933,0.039,90285.0,90284.0,0.0021177]
[1765153503153,0.039,90285.0,90284.0,0.08684069]
[1765153503318,0.05557,90285.0,90284.0,0.06464069]
[1765153503563,0.039,90285.0,90284.0,0.06464069]
[1765153503785,0.039,90285.0,90284.0,0.28616388]
[1765153504004,0.012,90285.0,90284.0,0.28516388]
[1765153504218,0.00023867,90288.0,90284.0,0.28516388]
[1765153504219,0.02257579,90287.0,90285.0,0.06252299]
[1765153504435,0.00023867,90288.0,90287.0,0.06252299]
[1765153504865,0.02257579,90287.0,90285.0,0.06252299]
[1765153505510,0.02257579,90287.0,90286.0,0.28404127]
[1765153505511,0.0115,90287.0,90286.0,0.28404127]
[1765153505723,0.00023867,90288.0,90287.0,0.06252299]
[1765153506391,0.00023867,90288.0,90287.0,0.09358299]
[1765153506636,0.00023867,90288.0,90287.0,0.12867308]
[1765153506843,0.00023867,90288.0,90287.0,0.08915299]
[1765153507051,0.00023867,90288.0,90287.0,0.12867308]
[1765153507305,0.00023867,90288.0,90285.0,0.03952009]
[1765153507306,0.01680867,90288.0,90285.0,0.03952009]
[1765153507502,0.25779779,90288.0,90287.0,0.006]
[1765153507710,0.25779779,90288.0,90287.0,0.06852299]
[1765153507951,0.27436779,90288.0,90287.0,0.06852299]
[1765153508261,0.24939779,90288.0,90287.0,0.06852299]
[1765153508475,0.25039779,90288.0,90287.0,0.06852299]
[1765153508828,0.27436779,90288.0,90287.0,0.06252299]
[1765153509240,0.28536779,90288.0,90287.0,0.06352299]
[1765153509718,0.28536779,90288.0,90287.0,0.001]
[1765153510348,0.31136779,90288.0,90287.0,0.002]
[1765153518570,0.31136779,90288.0,90287.0,0.29046882]
[1765153518571,0.03723867,90288.0,90287.0,0.29046882]
[1765153518803,0.03723867,90288.0,90287.0,0.67961891]
[1765153519018,0.03723867,90288.0,90287.0,0.64009882]
[1765153519451,0.01123867,90288.0,90287.0,0.63909882]
[1765153520353,0.00023867,90288.0,90287.0,0.64509882]
[1765153520651,0.00123867,90288.0,90287.0,0.69989469]
[1765153520873,0.00123867,90288.0,90287.0,0.33075882]
[1765153521099,0.00023867,90288.0,90287.0,0.33518882]
[1765153521498,0.00023867,90288.0,90287.0,0.33618882]
[1765153521705,0.00023867,90288.0,90287.0,0.32475882]
[1765153521909,0.00023867,90288.0,90287.0,0.32875882]
[1765153522070,0.00023867,90288.0,90287.0,0.33318882]
[1765153522286,0.00023867,90288.0,90287.0,0.33261882]
[1765153522481,0.00023867,90288.0,90287.0,0.37510977]
[1765153522680,0.00023867,90288.0,90287.0,0.33561882]
[1765153523318,0.00023867,90288.0,90287.0,0.39481609]
[1765153524562,0.00023867,90288.0,90287.0,0.36818609]
[1765153524739,0.00023867,90288.0,90287.0,0.63198882]
[1765153524921,0.00023867,90288.0,90287.0,0.65418882]
[1765153525132,0.00023867,90288.0,90287.0,0.65861882]
[1765153526459,0.00023867,90288.0,90287.0,0.326]
[1765153526687,0.01620867,90288.0,90287.0,0.003]
[1765153526913,0.04036867,90288.0,90287.0,0.003]
[1765153527469,0.01620867,90288.0,90287.0,0.003]
[1765153527668,0.04036867,90288.0,90287.0,0.003]
[1765153527933,0.22152073,90285.0,90284.0,0.0001177]
[1765153528127,0.2391036,90285.0,90284.0,0.0001177]
[1765153528434,0.2632636,90285.0,90284.0,0.0001177]
[1765153528977,0.2391036,90285.0,90284.0,0.0001177]
[1765153529213,0.01758287,90285.0,90284.0,0.0001177]
[1765153529594,0.01758287,90285.0,90284.0,0.0011177]
[1765153529595,0.02861287,90285.0,90284.0,0.0011177]
[1765153530381,0.06874287,90285.0,90284.0,0.0011177]
[1765153530604,0.07974287,90285.0,90284.0,0.0021177]
[1765153530804,0.05558287,90285.0,90284.0,0.0021177]
[1765153531008,0.01758287,90285.0,90284.0,0.0001177]
[1765153531414,0.04358287,90285.0,90284.0,0.0011177]
[1765153531612,0.01858287,90285.0,90284.0,0.0001177]
[1765153531921,0.04358287,90285.0,90284.0,0.0011177]
[1765153532124,0.06774287,90285.0,90284.0,0.0011177]
[1765153532349,0.2892636,90285.0,90284.0,0.0011177]
[1765153532879,0.2882636,90285.0,90284.0,0.0011177]
[1765153533092,0.2741036,90285.0,90284.0,0.0021177]
[1765153535764,0.05258287,90285.0,90284.0,0.0021177]
[1765153536506,0.2741036,90285.0,90284.0,0.0021177]
[1765153537236,0.2982636,90285.0,90284.0,0.0021177]
[1765153537427,0.05258287,90285.0,90284.0,0.0021177]
[1765153537854,0.07674287,90285.0,90284.0,0.0021177]
[1765153538096,0.05258287,90285.0,90284.0,0.0021177]
[1765153538301,0.07674287,90285.0,90284.0,0.0021177]
[1765153541150,0.05258287,90285.0,90284.0,0.0021177]
[1765153541726,0.2741036,90285.0,90284.0,0.0021177]
[1765153542854,0.05258287,90285.0,90284.0,0.0021177]
[1765153543186,0.2982236,90285.0,90284.0,0.0021177]
[1765153545558,0.03661287,90285.0,90284.0,0.0021177]
[1765153546110,0.035,90285.0,90284.0,0.09127069]
[1765153546470,0.035,90285.0,90284.0,0.12085257]
[1765153547310,0.035,90285.0,90284.0,0.09570069]
[1765153547479,0.035,90285.0,90284.0,0.41870069]
[1765153547919,0.035,90285.0,90284.0,0.47789796]
[1765153548122,0.035,90285.0,90284.0,0.47689796]
[1765153548392,0.025,90285.0,90284.0,0.43990069]
[1765153548510,0.025,90285.0,90284.0,0.44090069]
[1765153549128,0.025,90285.0,90284.0,0.43990069]
[1765153549331,0.00023867,90288.0,90287.0,0.08472299]
[1765153549538,0.00023867,90288.0,90287.0,0.66822005]
[1765153549782,0.00023867,90288.0,90287.0,0.67265005]
[1765153550980,0.00023867,90288.0,90287.0,0.67965005]
[1765153551303,0.00023867,90288.0,90287.0,0.68165005]
[1765153552563,0.00023867,90288.0,90287.0,0.67465005]
[1765153553181,0.00023867,90288.0,90287.0,0.67965005]
[1765153553384,0.00023867,90288.0,90287.0,0.67465005]
[1765153553787,0.00023867,90288.0,90287.0,1.29800805]
[1765153554149,0.00023867,90288.0,90287.0,1.29200805]
[1765153554530,0.01214,90321.0,90315.0,0.25471926]
[1765153554861,0.01107137,90323.0,90320.0,0.01550174]
[1765153555130,0.01107113,90325.0,90322.0,0.01107149]
[1765153555326,0.01107076,90328.0,90325.0,0.01107113]
[1765153555534,0.01107064,90329.0,90327.0,0.00443]
[1765153555705,0.01118825,90329.0,90326.0,0.011071]
[1765153555913,0.01118825,90329.0,90325.0,0.01107113]
[1765153555914,0.01107076,90328.0,90324.0,0.03327125]
[1765153556498,0.03807076,90328.0,90325.0,0.001]
[1765153556828,0.01107076,90328.0,90324.0,0.03327125]
[1765153557061,0.04907076,90328.0,90325.0,0.001]
[1765153557307,0.011,90328.0,90327.0,0.28837072]
[1765153557518,0.011,90328.0,90327.0,0.31057072]
[1765153557717,0.00011761,90329.0,90328.0,0.08472299]
[1765153557940,0.00011761,90329.0,90328.0,0.41658299]
[1765153558703,0.00011761,90329.0,90328.0,0.44161723]
[1765153558907,0.00011761,90329.0,90328.0,0.45913723]
[1765153559108,0.00011761,90329.0,90328.0,0.46413723]
[1765153559453,0.00011761,90329.0,90328.0,0.42967299]
[1765153559795,0.00011761,90329.0,90328.0,0.43167299]
[1765153560231,0.00011761,90329.0,90328.0,0.43267299]
[1765153560437,0.00134017,90329.0,90328.0,0.38852299]
[1765153560641,0.00134017,90329.0,90328.0,0.40504299]
[1765153560863,0.00134017,90329.0,90328.0,0.002]
[1765153560864,0.04321304,90329.0,90328.0,0.002]
[1765153561995,0.04321304,90329.0,90320.0,0.06252299]
[1765153561996,0.01107137,90323.0,90320.0,0.07359473]
[1765153562136,0.01107149,90322.0,90320.0,0.06252299]
[1765153562339,0.00098409,90321.0,90320.0,0.06252299]
[1765153562593,0.00098409,90321.0,90310.0,0.25092187]
[1765153562594,0.01107223,90316.0,90315.0,0.0222]
[1765153562737,0.01107223,90316.0,90315.0,0.10224299]
[1765153562936,0.01107223,90316.0,90315.0,0.08472299]
[1765153563137,0.01107223,90316.0,90315.0,0.10224299]
[1765153563581,0.24856693,90316.0,90315.0,0.06252299]
[1765153563783,0.0110726,90313.0,90307.0,0.01550333]
[1765153564028,0.0110726,90313.0,90308.0,0.23898432]
[1765153564159,0.0110726,90313.0,90310.0,0.01107297]
[1765153564371,0.01196,90320.0,90317.0,0.06252299]
[1765153564592,0.2214398,90318.0,90316.0,0.06252299]
[1765153565993,0.2244398,90318.0,90316.0,0.06252299]
[1765153566470,0.0110726,90313.0,90312.0,0.08472299]
[1765153566743,0.003,90318.0,90312.0,0.08472299]
[1765153566744,0.003,90318.0,90315.0,0.06252299]
[1765153566915,0.004,90318.0,90317.0,0.06252299]
[1765153567432,0.003,90318.0,90317.0,0.06252299]
[1765153567754,0.23411698,90321.0,90317.0,0.0735951]
[1765153567944,0.01107174,90320.0,90317.0,0.0735951]
[1765153568202,0.23250893,90320.0,90317.0,0.06252299]
[1765153568371,0.00089466,90318.0,90317.0,0.06252299]
[1765153568529,0.00289466,90318.0,90317.0,0.06252299]
[1765153568732,0.00589466,90318.0,90317.0,0.06252299]
[1765153568959,0.00289466,90318.0,90317.0,0.28396524]
[1765153569159,0.00289466,90318.0,90317.0,0.31059524]
[1765153569622,0.00289466,90318.0,90317.0,0.08472299]
[1765153569829,0.00089466,90318.0,90317.0,0.06252299]
[1765153569999,0.22233446,90318.0,90315.0,0.06252299]
[1765153570220,0.23251436,90317.0,90316.0,0.09707422]
[1765153570573,0.01196,90319.0,90317.0,0.06252299]
[1765153570794,0.014,90320.0,90317.0,0.0735951]
[1765153571017,0.001,90318.0,90317.0,0.0735951]
[1765153571471,0.00161287,90321.0,90318.0,0.23251179]
[1765153571679,0.002,90319.0,90317.0,0.0735951]
[1765153571882,0.002,90319.0,90317.0,0.06252299]
[1765153572819,0.002,90319.0,90317.0,0.28396408]
[1765153573026,0.01268449,90321.0,90318.0,0.01107199]
[1765153573238,0.00161287,90321.0,90318.0,0.01107199]
[1765153573554,0.00161287,90321.0,90319.0,0.22143734]
[1765153573756,0.01107174,90320.0,90317.0,0.06252299]
[1765153574104,0.005,90319.0,90318.0,0.29503478]
[1765153574505,0.01268449,90321.0,90318.0,0.06252299]
[1765153574805,0.01245,90319.0,90318.0,0.06252299]
[1765153575357,0.01545,90319.0,90318.0,0.06252299]
[1765153575873,0.23781181,90319.0,90318.0,0.06252299]
[1765153576071,0.27716181,90319.0,90318.0,0.06252299]
[1765153576519,0.25318181,90319.0,90318.0,0.06252299]
[1765153576721,0.23781181,90319.0,90318.0,0.06252299]
[1765153577143,0.01837447,90319.0,90318.0,0.06252299]
[1765153579347,0.01837447,90319.0,90316.0,0.02944092]
[1765153579348,0.2214398,90318.0,90316.0,0.02944092]
[1765153579554,0.22145206,90313.0,90312.0,0.02944092]
[1765153579756,0.01107333,90307.0,90304.0,0.01752]
[1765153579894,0.01107333,90307.0,90304.0,0.08004299]
[1765153579895,0.22147167,90305.0,90304.0,0.08004299]
[1765153580112,0.23684167,90305.0,90304.0,0.08004299]
[1765153581122,0.23784167,90305.0,90304.0,0.08004299]
[1765153581338,0.23784167,90305.0,90304.0,0.06252299]
[1765153581543,0.23784167,90305.0,90296.0,0.01107468]
[1765153581544,0.22147658,90303.0,90301.0,0.02944092]
[1765153581743,0.22148884,90298.0,90297.0,0.02944092]
[1765153581859,0.22148884,90298.0,90297.0,0.09196391]
[1765153582059,0.26083884,90298.0,90297.0,0.09196391]
[1765153582271,0.26083884,90298.0,90297.0,0.06252299]
[1765153583356,0.26083884,90298.0,90292.0,0.06252299]
[1765153583357,0.22150111,90293.0,90292.0,0.06252299]
[1765153583602,0.22151092,90289.0,90288.0,0.02944092]
[1765153583845,0.29849163,90289.0,90288.0,0.0001177]
[1765153584034,0.29849163,90289.0,90268.0,0.03326043]
[1765153584035,0.01107689,90278.0,90274.0,0.02944092]
[1765153584239,0.23264831,90265.0,90262.0,0.02944092]
[1765153584441,0.23264831,90265.0,90253.0,0.02811119]
[1765153584442,0.02644898,90261.0,90258.0,0.02944092]
[1765153584660,0.24802862,90261.0,90258.0,0.02944092]
[1765153584846,0.0110791,90260.0,90257.0,0.02944092]
[1765153585268,0.0110791,90260.0,90256.0,0.02811082]
[1765153585480,0.01107922,90259.0,90256.0,0.02811082]
[1765153585694,0.23266406,90259.0,90256.0,0.01703123]
[1765153585901,0.01107922,90259.0,90257.0,0.06252299]
[1765153586659,0.23266429,90259.0,90257.0,0.06252299]
[1765153586850,0.01537,90258.0,90257.0,0.06252299]
[1765153587482,0.01537,90258.0,90257.0,0.06352299]
[1765153587670,0.01537,90258.0,90257.0,0.06252299]
[1765153587870,0.02644935,90258.0,90256.0,0.06252299]
[1765153588089,0.01107935,90258.0,90257.0,0.001]
[1765153588249,0.02644947,90257.0,90255.0,0.06252299]
[1765153588463,0.01537,90257.0,90255.0,0.06252299]
[1765153588671,0.024,90258.0,90257.0,0.06252299]
[1765153588937,0.024,90258.0,90257.0,0.08472299]
[1765153589068,0.023,90258.0,90257.0,0.08926299]
[1765153589270,0.023,90258.0,90257.0,0.08472299]
[1765153589749,0.01537,90258.0,90254.0,0.03455123]
[1765153589885,0.01537,90258.0,90257.0,0.06252299]
[1765153590094,0.01107775,90271.0,90267.0,0.01107824]
[1765153590325,0.23262841,90273.0,90268.0,0.23264029]
[1765153590525,0.02352738,90274.0,90271.0,0.01107775]
[1765153590703,0.01245,90274.0,90273.0,0.0222]
[1765153591223,0.01245,90274.0,90271.0,0.01107775]
[1765153591670,0.03745,90274.0,90271.0,0.01207775]
[1765153592930,0.01245,90274.0,90272.0,0.22155264]
[1765153593122,0.03745,90274.0,90273.0,0.001]
[1765153593526,0.02245,90274.0,90271.0,0.01207775]
[1765153593665,0.04745,90274.0,90271.0,0.01307775]
[1765153594084,0.01,90274.0,90273.0,0.0222]
[1765153594306,0.035,90274.0,90273.0,0.0232]
[1765153594500,0.035,90274.0,90271.0,0.2558317]
[1765153594761,0.24262512,90274.0,90271.0,0.0232]